bitfinex-derivatives/quotes_SOLF0:USTF0_20250113
["timestamp","ask_amount","ask_price","bid_price","bid_amount"]
[1736781408787,6.3952,177.95,177.82,2.8133]
[1736781408993,6.3952,177.95,177.77,42.64142099]
[1736781408994,42.64142099,177.93,177.77,42.64142099]
[1736781409391,8.88,177.93,177.8,42.64142099]
[1736781410097,6.3952,177.95,177.83,42.64142099]
[1736781410301,3.2691,177.95,177.87,2.8125]
[1736781410500,3.2691,177.95,177.87,42.64142099]
[1736781410695,3.0783,177.98,177.87,42.64142099]
[1736781410894,3.0783,177.98,177.91,2.8118]
[1736781411098,3.0783,177.98,177.87,42.64142099]
[1736781411293,2.8111,177.96,177.91,2.8118]
[1736781411497,8.88,178.03,177.87,42.64142099]
[1736781411799,8.88,178.03,177.9,42.64142099]
[1736781412000,3.1983,178.04,177.9,42.64142099]
[1736781412699,3.1983,178.04,177.93,42.64142099]
[1736781412901,3.25,178.05,177.96,42.64142099]
[1736781413096,2.8095,178.06,178.01,2.8103]
[1736781413301,11.9259,178.09,177.96,42.64142099]
[1736781414299,2.81,178.03,177.98,2.8107]
[1736781414605,11.9259,178.09,177.96,42.64142099]
[1736781414804,2.8099,178.04,177.95,2.8111]
[1736781415105,42.64142099,178.08,177.93,42.64142099]
[1736781416104,11.9259,178.09,177.93,42.64142099]
[1736781416304,42.64142099,178.08,177.93,42.64142099]
[1736781417001,2.8099,178.04,177.95,2.8112]
[1736781417303,42.64142099,178.08,177.93,42.64142099]
[1736781417498,2.8105,178.0,177.94,2.8114]
[1736781417811,42.64142099,178.08,177.93,42.64142099]
[1736781417998,2.8106,177.99,177.93,45.45282099]
[1736781418200,42.64142099,178.08,177.93,42.64142099]
[1736781418400,11.9259,178.09,177.93,42.64142099]
[1736781418604,3.0459,178.09,177.96,42.64142099]
[1736781419004,45.83972099,178.11,177.96,42.64142099]
[1736781419202,2.8097,178.06,178.0,2.8104]
[1736781419403,45.83972099,178.11,178.0,2.8104]
[1736781419711,2.8097,178.05,178.0,2.8104]
[1736781419903,45.83972099,178.11,177.96,42.64142099]
[1736781420210,45.83972099,178.11,177.93,42.64142099]
[1736781420405,42.64142099,178.08,177.93,42.64142099]
[1736781420705,42.64142099,178.08,177.9,42.64142099]
[1736781420908,42.64142099,178.05,177.9,2.8119]
[1736781421209,6.4911,178.04,177.9,42.64142099]
[1736781421399,6.4911,178.04,177.92,2.8117]
[1736781421601,42.64142099,178.02,177.88,96.54]
[1736781421801,3.1681,178.01,177.88,96.54]
[1736781422307,2.8109,177.98,177.88,96.54]
[1736781422509,12.0281,178.01,177.95,2.8112]
[1736781422712,12.0281,178.01,177.9,42.64142099]
[1736781422909,2.8106,178.0,177.9,42.64142099]
[1736781423205,12.0281,178.01,177.9,42.64142099]
[1736781423404,2.8103,178.01,177.93,42.64142099]
[1736781423600,6.4911,178.04,177.93,42.64142099]
[1736781423806,3.3108,178.04,177.96,42.64142099]
[1736781424111,2.8094,178.07,177.96,42.64142099]
[1736781424306,3.1439,178.1,177.96,42.64142099]
[1736781424507,2.8098,178.05,177.96,42.64142099]
[1736781424708,3.1439,178.1,177.96,42.64142099]
[1736781424915,42.64142099,178.08,177.93,42.64142099]
[1736781425106,12.0039,178.1,177.93,42.64142099]
[1736781425313,12.0039,178.1,178.02,2.8101]
[1736781425607,2.8096,178.06,177.96,42.64142099]
[1736781426107,3.1439,178.1,177.93,42.64142099]
[1736781426409,3.1595,178.11,178.02,45.45142099]
[1736781426611,3.1595,178.11,178.02,2.81]
[1736781426910,3.1595,178.11,177.94,2.8113]
[1736781427206,2.8099,178.04,177.93,42.64142099]
[1736781427414,45.80092099,178.11,177.99,2.8105]
[1736781427911,45.80092099,178.11,177.96,42.64142099]
[1736781428112,54.66092099,178.11,177.96,42.64142099]
[1736781428303,3.1595,178.11,177.99,42.64142099]
[1736781428709,3.1595,178.11,178.02,42.64142099]
[1736781428914,3.1468,178.13,178.02,42.64142099]
[1736781430213,2.8093,178.08,178.03,2.8098]
[1736781431112,2.8094,178.07,178.02,45.45152099]
[1736781431310,3.326,178.12,177.96,42.64142099]
[1736781431515,42.64142099,178.11,177.96,42.64142099]
[1736781431915,3.326,178.12,177.93,42.64142099]
[1736781431916,42.64142099,178.08,177.93,42.64142099]
[1736781432318,42.64142099,178.05,177.9,50.33430758]
[1736781432514,2.8113,177.95,177.9,7.69288659]
[1736781432712,42.64142099,178.02,177.9,7.69288659]
[1736781432914,2.8107,177.99,177.92,2.8117]
[1736781433119,3.2868,178.03,177.92,2.8117]
[1736781433627,2.8111,177.97,177.92,2.8117]
[1736781433826,3.2868,178.03,177.92,2.8117]
[1736781434029,3.2868,178.03,177.93,42.64142099]
[1736781434329,42.64142099,178.14,177.99,42.64142099]
[1736781434524,2.8092,178.09,178.04,2.8097]
[1736781434723,9.7328,178.14,178.02,42.64142099]
[1736781434920,9.7328,178.14,178.05,42.64142099]
[1736781435120,2.8084,178.12,178.07,2.809]
[1736781435317,6.4179,178.14,178.05,42.64142099]
[1736781435728,6.4179,178.14,178.07,2.809]
[1736781436121,6.4179,178.14,178.05,42.64142099]
[1736781436426,42.64142099,178.26,178.11,42.64142099]
[1736781436617,12.1549,178.25,178.11,42.64142099]
[1736781436816,2.8073,178.19,178.11,42.64142099]
[1736781437125,3.3149,178.25,178.11,42.64142099]
[1736781437323,2.8069,178.21,178.13,2.808]
[1736781437625,2.8069,178.21,178.11,42.64142099]
[1736781437825,2.8071,178.2,178.13,2.8081]
[1736781438217,3.3149,178.25,178.11,42.64142099]
[1736781438424,2.8073,178.19,178.11,45.44972099]
[1736781438628,3.3149,178.25,178.08,42.64142099]
[1736781438826,42.64142099,178.23,178.06,0.1171]
[1736781439020,42.64142099,178.2,178.06,0.1171]
[1736781439228,42.64142099,178.2,178.01,8.84]
[1736781439229,42.64142099,178.17,178.02,42.64142099]
[1736781439421,2.8091,178.08,178.02,42.64142099]
[1736781439633,42.64142099,178.14,178.0,96.46]
[1736781440023,2.8093,178.06,178.0,96.46]
[1736781440320,42.64142099,178.14,177.95,0.0612]
[1736781440523,42.64142099,178.08,177.95,0.0612]
[1736781440927,3.2098,178.07,177.95,0.0612]
[1736781441331,3.2098,178.07,177.95,42.70262099]
[1736781441529,3.2098,178.07,177.95,42.64142099]
[1736781441731,6.35,178.06,177.94,109.75469354]
[1736781442129,6.35,178.06,177.95,42.64142099]
[1736781442324,42.64142099,178.14,178.01,42.64142099]
[1736781442627,3.2098,178.13,178.03,2.8096]
[1736781443126,2.8093,178.06,178.01,45.45142099]
[1736781443328,3.2098,178.13,178.01,42.64142099]
[1736781443732,2.8094,178.05,178.0,2.8102]
[1736781444032,3.2098,178.13,177.98,42.64142099]
[1736781444234,42.64142099,178.11,177.98,42.64142099]
[1736781444430,3.2098,178.13,177.98,42.64142099]
[1736781444629,3.2098,178.13,178.01,42.64142099]
[1736781444830,2.8085,178.11,178.06,2.8092]
[1736781445032,6.35,178.15,178.01,42.64142099]
[1736781445630,6.35,178.15,178.07,42.64142099]
[1736781446034,3.3772,178.2,178.07,42.64142099]
[1736781446229,3.3772,178.2,178.1,42.64142099]
[1736781446435,3.3927,178.21,178.1,42.64142099]
[1736781446837,42.64142099,178.2,178.04,42.64142099]
[1736781447233,2.8078,178.16,178.04,45.45082099]
[1736781447431,42.64142099,178.2,178.04,45.45082099]
[1736781447633,42.64142099,178.2,178.04,42.64142099]
[1736781447834,42.64142099,178.2,178.08,2.8088]
[1736781448035,42.64142099,178.2,178.04,42.64142099]
[1736781448537,42.64142099,178.17,178.04,42.64142099]
[1736781448736,3.3927,178.21,178.04,42.64142099]
[1736781448930,3.3927,178.21,178.11,2.8084]
[1736781449140,3.3927,178.21,178.08,42.64142099]
[1736781449335,3.3927,178.21,178.11,42.64142099]
[1736781449826,2.8071,178.2,178.16,2.8076]
[1736781450332,2.8064,178.24,178.14,42.64142099]
[1736781450531,32.15809375,178.28,178.14,42.64142099]
[1736781450930,23.31809375,178.28,178.14,42.64142099]
[1736781451537,23.31809375,178.28,178.18,2.8072]
[1736781451738,63.20782476,178.29,178.14,42.64142099]
[1736781452242,63.20782476,178.29,178.2,42.64142099]
[1736781452636,2.806,178.27,178.21,2.8067]
[1736781452841,63.20782476,178.29,178.2,42.64142099]
[1736781453441,66.01362476,178.29,178.23,2.8064]
[1736781454038,63.20782476,178.29,178.23,42.64142099]
[1736781454741,63.20782476,178.29,178.24,2.8063]
[1736781454946,63.20782476,178.29,178.2,42.64142099]
[1736781455131,63.20782476,178.29,178.23,42.64142099]
[1736781455333,63.20782476,178.29,178.26,42.64142099]
[1736781455533,63.15622476,178.29,178.26,42.64142099]
[1736781455734,63.15622476,178.29,178.28,2.8058]
[1736781455940,63.15622476,178.29,178.23,42.64142099]
[1736781456340,63.15622476,178.29,178.26,42.64142099]
[1736781456541,63.15622476,178.29,178.28,2.8058]
[1736781456841,8.82,178.43,178.26,42.64142099]
[1736781457038,2.8041,178.39,178.33,2.8049]
[1736781457440,2.8041,178.39,178.31,42.64142099]
[1736781457441,3.1665,178.43,178.31,42.64142099]
[1736781457743,3.1665,178.43,178.28,42.64142099]
[1736781458143,3.1665,178.43,178.3,2.8054]
[1736781458639,2.8044,178.38,178.31,2.8052]
[1736781458843,3.1665,178.43,178.28,42.64142099]
[1736781459143,42.64142099,178.51,178.34,42.64142099]
[1736781459444,10.0119,178.52,178.37,42.64142099]
[1736781459644,10.0119,178.52,178.4,42.64142099]
[1736781460039,10.0119,178.52,178.38,42.64142099]
[1736781460234,2.8026,178.48,178.43,2.8034]
[1736781460546,10.0119,178.52,178.41,42.64142099]
[1736781461049,6.5627,178.52,178.41,42.64142099]
[1736781462143,2.8034,178.44,178.38,2.8041]
[1736781462351,15.3827,178.52,178.38,42.64142099]
[1736781462833,42.64142099,178.5,178.35,42.64142099]
[1736781463037,42.64142099,178.47,178.32,42.64142099]
[1736781463245,3.3456,178.46,178.35,42.64142099]
[1736781463440,2.8035,178.43,178.37,2.8042]
[1736781463643,3.3456,178.46,178.35,42.64142099]
[1736781464243,2.8035,178.43,178.37,2.8044]
[1736781464443,3.3456,178.46,178.32,42.64142099]
[1736781464635,3.3456,178.46,178.35,42.64142099]
[1736781465040,2.8034,178.44,178.38,2.8041]
[1736781465343,3.3519,178.51,178.38,42.64142099]
[1736781465541,6.5627,178.52,178.41,42.64142099]
[1736781466045,2.8025,178.5,178.44,2.8033]
[1736781466241,6.5627,178.52,178.41,42.64142099]
[1736781466445,3.3519,178.56,178.44,42.64142099]
[1736781466739,42.64142099,178.62,178.47,42.64142099]
[1736781467344,9.932,178.64,178.5,42.64142099]
[1736781468140,2.8011,178.58,178.53,2.8018]
[1736781468335,9.932,178.64,178.5,42.64142099]
[1736781469441,2.8008,178.6,178.54,2.8017]
[1736781469641,9.932,178.64,178.5,42.64142099]
[1736781470047,2.801,178.59,178.52,2.8019]
[1736781470346,9.932,178.64,178.5,42.64142099]
[1736781470547,2.8008,178.6,178.51,2.8021]
[1736781470842,9.932,178.64,178.5,42.64142099]
[1736781471042,2.8007,178.61,178.5,42.64142099]
[1736781471244,9.932,178.64,178.5,42.64142099]
[1736781471440,42.64142099,178.75,178.58,42.64142099]
[1736781471645,2.799,178.71,178.65,2.7998]
[1736781471844,9.9136,178.79,178.67,42.64142099]
[1736781472248,9.9136,178.79,178.64,42.64142099]
[1736781472645,23.31809375,178.88,178.76,42.64142099]
[1736781473039,42.64142099,178.86,178.7,42.64142099]
[1736781474054,42.64142099,178.83,178.67,42.64142099]
[1736781474246,3.1769,178.82,178.67,42.64142099]
[1736781474943,2.7973,178.83,178.74,2.7984]
[1736781475139,51.42142099,178.89,178.73,42.64142099]
[1736781475543,51.42142099,178.89,178.74,2.7985]
[1736781475745,51.42142099,178.89,178.73,42.64142099]
[1736781475944,42.64142099,178.86,178.7,42.64142099]
[1736781476149,2.7981,178.77,178.7,42.64142099]
[1736781476344,42.64142099,178.83,178.7,42.64142099]
[1736781476546,2.7983,178.76,178.7,42.64142099]
[1736781476745,2.7983,178.76,178.67,42.64142099]
[1736781476950,42.64142099,178.8,178.67,42.64142099]
[1736781477145,2.7993,178.7,178.62,2.8004]
[1736781477345,42.64142099,178.77,178.61,42.64142099]
[1736781477742,42.64142099,178.74,178.56,8.78]
[1736781478348,42.64142099,178.71,178.55,42.64142099]
[1736781478546,12.0332,178.7,178.55,42.64142099]
[1736781478753,42.64142099,178.68,178.54,96.12]
[1736781479053,6.3751,178.67,178.54,96.12]
[1736781479249,6.3751,178.67,178.52,42.64142099]
[1736781479454,6.3751,178.67,178.53,2.8018]
[1736781479752,6.3751,178.67,178.52,42.64142099]
[1736781479753,42.64142099,178.65,178.52,42.64142099]
[1736781480053,42.64142099,178.65,178.49,42.64142099]
[1736781480446,8.78,178.66,178.52,42.64142099]
[1736781480646,2.8007,178.61,178.52,45.44332099]
[1736781480852,6.3751,178.67,178.55,42.64142099]
[1736781481956,6.3751,178.67,178.58,42.64142099]
[1736781482156,7.54161018,178.79,178.5,8.78]
[1736781482157,42.64142099,178.77,178.61,42.64142099]
[1736781482458,16.32161018,178.79,178.68,2.7995]
[1736781482459,2.7985,178.75,178.68,2.7995]
[1736781482656,3.1501,178.76,178.64,42.64142099]
[1736781482857,3.1501,178.76,178.61,42.64142099]
[1736781483054,2.7992,178.7,178.62,2.8003]
[1736781483258,3.1501,178.76,178.61,42.64142099]
[1736781483656,2.7995,178.68,178.61,45.44192099]
[1736781483858,2.7995,178.68,178.61,42.64142099]
[1736781484061,3.1501,178.76,178.61,42.64142099]
[1736781484360,2.799,178.72,178.64,42.64142099]
[1736781484954,2.799,178.71,178.65,2.7998]
[1736781485163,3.1501,178.76,178.61,42.64142099]
[1736781485553,3.1501,178.76,178.63,2.8003]
[1736781485754,42.64142099,178.74,178.58,42.64142099]
[1736781485958,42.64142099,178.71,178.58,42.64142099]
[1736781486157,42.64142099,178.71,178.55,42.64142099]
[1736781486556,2.7998,178.66,178.6,2.8007]
[1736781486956,42.64142099,178.74,178.58,42.64142099]
[1736781487161,42.64142099,178.74,178.59,2.8008]
[1736781487660,2.7994,178.69,178.6,2.8006]
[1736781487862,8.78,178.73,178.58,42.64142099]
[1736781488365,2.7996,178.68,178.61,2.8006]
[1736781489067,2.8,178.65,178.58,2.8009]
[1736781489261,3.2577,178.67,178.55,42.64142099]
[1736781489465,49.07602099,178.66,178.52,42.64142099]
[1736781489659,49.07602099,178.66,178.49,42.64142099]
[1736781489864,42.64142099,178.63,178.49,42.64142099]
[1736781490366,42.64142099,178.63,178.5,2.8022]
[1736781490964,2.8014,178.57,178.51,2.8022]
[1736781491266,42.64142099,178.63,178.51,2.8022]
[1736781491469,49.07602099,178.66,178.49,42.64142099]
[1736781491767,6.4346,178.66,178.53,42.64142099]
[1736781492070,6.1046,178.66,178.6,2.8007]
[1736781492262,3.3046,178.66,178.59,42.64142099]
[1736781492465,3.2033,178.73,178.59,42.64142099]
[1736781492666,2.7994,178.69,178.59,42.64142099]
[1736781493163,2.7996,178.68,178.63,2.8003]
[1736781493360,9.6121,178.73,178.59,42.64142099]
[1736781493768,2.8,178.65,178.6,2.8008]
[1736781493956,42.64142099,178.72,178.59,42.64142099]
[1736781494158,2.7996,178.68,178.63,2.8001]
[1736781494371,9.6121,178.73,178.59,42.64142099]
[1736781494562,42.64142099,178.72,178.59,42.64142099]
[1736781494763,42.64142099,178.72,178.56,42.64142099]
[1736781494958,8.76,178.71,178.56,42.64142099]
[1736781495161,2.8002,178.64,178.59,2.8008]
[1736781495368,42.64142099,178.69,178.56,42.64142099]
[1736781495867,8.76,178.71,178.56,42.64142099]
[1736781496267,8.76,178.71,178.59,2.8008]
[1736781496268,2.8,178.65,178.59,2.8008]
[1736781496465,42.64142099,178.72,178.59,42.64142099]
[1736781496767,2.799,178.72,178.67,2.7997]
[1736781496968,42.64142099,178.79,178.65,42.64142099]
[1736781496969,9.839,178.78,178.65,42.64142099]
[1736781497161,42.64142099,178.76,178.62,42.64142099]
[1736781497366,51.40142099,178.76,178.62,42.64142099]
[1736781497562,51.40142099,178.76,178.59,42.64142099]
[1736781497771,42.64142099,178.73,178.59,42.64142099]
[1736781498165,51.40142099,178.76,178.62,42.64142099]
[1736781498472,8.76,178.76,178.62,42.64142099]
[1736781498866,51.40142099,178.76,178.63,2.8003]
[1736781499066,51.40142099,178.76,178.62,42.64142099]
[1736781499465,42.64142099,178.73,178.59,42.64142099]
[1736781500165,51.40142099,178.76,178.62,42.64142099]
[1736781500363,2.7988,178.73,178.62,42.64142099]
[1736781500567,2.7988,178.73,178.65,42.64142099]
[1736781500766,9.839,178.78,178.65,42.64142099]
[1736781501169,2.7989,178.72,178.66,2.7997]
[1736781501362,9.839,178.78,178.65,42.64142099]
[1736781502663,9.839,178.78,178.56,42.64142099]
[1736781502863,9.839,178.78,178.7,2.7992]
[1736781503061,9.839,178.78,178.64,42.64142099]
[1736781503471,2.7989,178.72,178.64,42.64142099]
[1736781503766,9.839,178.78,178.64,42.64142099]
[1736781503970,42.64142099,178.76,178.61,42.64142099]
[1736781504369,51.40142099,178.76,178.61,42.64142099]
[1736781504570,9.839,178.78,178.64,42.64142099]
[1736781505575,2.7981,178.77,178.72,2.7988]
[1736781505773,9.839,178.78,178.67,42.64142099]
[1736781506369,9.839,178.78,178.64,42.64142099]
[1736781506779,42.64142099,178.76,178.61,42.64142099]
[1736781507071,9.839,178.78,178.64,42.64142099]
[1736781507271,2.799,178.72,178.66,2.7997]
[1736781507475,9.839,178.78,178.64,42.64142099]
[1736781507778,2.799,178.71,178.66,2.7998]
[1736781508075,9.839,178.78,178.67,42.64142099]
[1736781508368,9.839,178.78,178.64,42.64142099]
[1736781508576,42.64142099,178.77,178.54,115.0496899]
[1736781508875,42.64142099,178.77,178.61,42.64142099]
[1736781509076,2.7994,178.69,178.64,2.8]
[1736781509578,42.64142099,178.77,178.61,42.64142099]
[1736781509776,2.7996,178.68,178.61,42.64142099]
[1736781510168,2.7988,178.73,178.64,2.8001]
[1736781510372,9.839,178.78,178.64,42.64142099]
[1736781511273,9.839,178.78,178.67,42.64142099]
[1736781511866,2.7986,178.75,178.7,2.7991]
[1736781512271,9.839,178.78,178.67,42.64142099]
[1736781512472,9.839,178.78,178.69,2.7993]
[1736781512874,2.7983,178.76,178.71,2.7989]
[1736781513075,2.7983,178.76,178.7,42.64142099]
[1736781513076,6.3925,178.78,178.7,42.64142099]
[1736781513480,6.3925,178.78,178.67,42.64142099]
[1736781513880,2.7988,178.73,178.68,2.7994]
[1736781514079,2.7988,178.73,178.67,42.64142099]
[1736781514278,6.3925,178.78,178.67,42.64142099]
[1736781514576,35.24479375,178.84,178.72,2.7988]
[1736781514771,3.1212,178.83,178.72,2.7988]
[1736781516075,45.76262099,178.83,178.71,2.799]
[1736781516283,2.7983,178.76,178.71,2.799]
[1736781516481,45.76262099,178.83,178.7,42.64142099]
[1736781516682,45.76262099,178.83,178.72,2.7988]
[1736781516878,2.7982,178.77,178.72,2.7988]
[1736781517072,45.76262099,178.83,178.7,42.64142099]
[1736781517277,45.76262099,178.83,178.67,42.64142099]
[1736781517475,2.7985,178.75,178.67,42.64142099]
[1736781517680,45.76262099,178.83,178.67,42.64142099]
[1736781517883,3.1212,178.83,178.67,42.64142099]
[1736781518081,42.64142099,178.82,178.67,42.64142099]
[1736781519380,42.64142099,178.82,178.71,2.799]
[1736781520187,3.1212,178.83,178.7,42.64142099]
[1736781520582,3.1212,178.83,178.67,42.64142099]
[1736781520583,3.1212,178.83,178.77,2.798]
[1736781521101,2.7976,178.81,178.77,2.798]
[1736781521383,3.1212,178.83,178.73,42.64142099]
[1736781521886,3.1212,178.83,178.7,42.64142099]
[1736781522386,2.798,178.78,178.74,2.7985]
[1736781522585,3.1212,178.83,178.7,42.64142099]
[1736781523280,2.7982,178.77,178.73,2.7987]
[1736781523478,2.7982,178.77,178.7,42.64142099]
[1736781523676,3.1212,178.83,178.7,42.64142099]
[1736781523982,3.1212,178.83,178.72,2.7988]
[1736781524383,3.1212,178.83,178.7,42.64142099]
[1736781524692,45.91732099,178.85,178.7,42.64142099]
[1736781524984,3.2759,178.85,178.73,42.64142099]
[1736781525197,2.7972,178.83,178.73,42.64142099]
[1736781525787,2.7972,178.83,178.79,2.7977]
[1736781525986,2.797,178.84,178.73,42.64142099]
[1736781526183,23.31809375,178.88,178.76,42.64142099]
[1736781526385,48.99582099,178.88,178.73,42.64142099]
[1736781526884,0.96101654,178.87,178.73,42.64142099]
[1736781527088,2.7981,178.78,178.7,42.64142099]
[1736781527281,42.64142099,178.85,178.7,42.64142099]
[1736781527282,42.64142099,178.85,178.73,2.7986]
[1736781527485,42.64142099,178.85,178.7,42.64142099]
[1736781528083,2.7984,178.76,178.72,2.7989]
[1736781528781,29.67249375,178.88,178.73,42.64142099]
[1736781528977,29.67249375,178.88,178.78,42.64142099]
[1736781529182,2.797,178.85,178.81,2.7975]
[1736781529384,2.797,178.85,178.81,45.43892099]
[1736781529583,23.31809375,178.89,178.81,42.64142099]
[1736781530481,23.31809375,178.89,178.85,2.7967]
[1736781530684,2.7962,178.9,178.84,42.64142099]
[1736781531080,26.51039375,178.94,178.84,42.64142099]
[1736781531286,23.31809375,178.94,178.9,42.64142099]
[1736781531684,23.31809375,178.94,178.91,2.7959]
[1736781531885,23.31809375,178.98,178.9,42.64142099]
[1736781532083,23.31809375,178.98,178.93,42.64142099]
[1736781532285,23.31809375,178.98,178.96,45.43652099]
[1736781532479,23.31809375,178.98,178.96,42.64142099]
[1736781533182,23.31809375,178.98,178.97,2.795]
[1736781533690,14.23569375,179.05,178.96,42.64142099]
[1736781533884,14.23569375,179.05,179.02,42.64142099]
[1736781534087,14.23569375,179.05,178.96,42.64142099]
[1736781534385,14.23569375,179.05,179.02,42.64142099]
[1736781534778,14.23569375,179.05,179.03,2.794]
[1736781535091,13.87826986,179.07,179.02,42.64142099]
[1736781535292,2.7933,179.08,179.01,2.7942]
[1736781535587,3.1213,179.11,178.99,42.64142099]
[1736781535989,2.7934,179.07,179.0,2.7944]
[1736781536183,3.1213,179.11,178.99,42.64142099]
[1736781536688,3.1213,179.11,179.02,2.7941]
[1736781536887,3.1213,179.11,178.99,42.64142099]
[1736781537582,2.7936,179.06,178.99,2.7946]
[1736781537783,3.1213,179.11,179.02,42.64142099]
[1736781538187,2.7926,179.12,179.05,2.7936]
[1736781538383,6.3121,179.13,179.05,2.7936]
[1736781538587,8.72,179.22,179.05,42.64142099]
[1736781538788,3.0844,179.17,179.05,42.64142099]
[1736781538979,2.7924,179.14,179.08,2.7932]
[1736781539184,3.0844,179.17,179.05,42.64142099]
[1736781539386,3.0844,179.17,179.01,42.64142099]
[1736781539687,42.64142099,179.15,179.01,42.64142099]
[1736781539882,42.64142099,179.12,178.98,42.64142099]
[1736781540079,6.3514,179.11,178.98,42.64142099]
[1736781540586,42.64142099,179.09,178.95,42.64142099]
[1736781540788,42.64142099,179.06,178.92,42.64142099]
[1736781540987,3.2537,179.05,178.92,42.64142099]
[1736781541688,42.64142099,179.04,178.89,42.64142099]
[1736781541992,42.64142099,179.01,178.86,42.64142099]
[1736781542190,42.64142099,178.98,178.83,42.64142099]
[1736781542788,14.8827,179.0,178.74,42.64142099]
[1736781542789,42.64142099,178.95,178.8,42.64142099]
[1736781542993,2.7963,178.89,178.81,2.7975]
[1736781543189,42.64142099,178.92,178.77,42.64142099]
[1736781543397,3.2537,178.94,178.8,42.64142099]
[1736781543589,3.2537,178.94,178.83,42.64142099]
[1736781543891,3.2537,178.94,178.8,42.64142099]
[1736781544095,2.7962,178.89,178.82,2.7973]
[1736781544389,42.64142099,178.92,178.77,42.64142099]
[1736781544690,2.7968,178.86,178.78,2.7978]
[1736781544887,3.0568,178.88,178.77,42.64142099]
[1736781545081,3.0568,178.88,178.8,42.64142099]
[1736781545288,6.3105,178.94,178.83,42.64142099]
[1736781545484,6.3105,178.94,178.8,42.64142099]
[1736781545888,42.64142099,178.92,178.81,2.7973]
[1736781546094,42.64142099,178.92,178.77,42.64142099]
[1736781546296,42.64142099,178.89,178.74,42.64142099]
[1736781546491,42.64142099,178.89,178.76,2.7981]
[1736781546691,42.64142099,178.86,178.71,42.64142099]
[1736781546888,3.212,178.88,178.74,42.64142099]
[1736781547494,2.7972,178.83,178.77,2.798]
[1736781547700,3.212,178.88,178.74,42.64142099]
[1736781548598,3.212,178.88,178.77,42.64142099]
[1736781549501,3.212,178.88,178.74,42.64142099]
[1736781550698,2.7973,178.82,178.74,42.64142099]
[1736781550900,3.212,178.88,178.74,42.64142099]
[1736781551908,6.3105,178.94,178.79,42.64142099]
[1736781552205,62.18158335,179.04,178.85,42.64142099]
[1736781552400,2.7955,178.94,178.85,42.64142099]
[1736781552797,9.731,179.0,178.85,42.64142099]
[1736781553101,9.731,179.0,178.88,42.64142099]
[1736781554004,2.795,178.97,178.92,2.7957]
[1736781554217,9.731,179.0,178.92,2.7957]
[1736781554399,6.5409,179.0,178.91,42.64142099]
[1736781554603,9.3354,179.0,178.91,42.64142099]
[1736781554897,8.7,179.05,178.91,42.64142099]
[1736781555100,8.7,179.05,178.85,8.7]
[1736781555101,2.7945,179.01,178.95,2.7953]
[1736781555305,42.64142099,179.04,178.91,42.64142099]
[1736781555700,42.64142099,179.01,178.85,42.64142099]
[1736781555899,42.64142099,179.01,178.88,42.64142099]
[1736781556301,42.64142099,178.98,178.82,42.64142099]
[1736781556504,42.64142099,178.95,178.79,42.64142099]
[1736781556710,9.5319,178.94,178.82,2.7973]
[1736781556911,42.64142099,179.01,178.86,42.64142099]
[1736781557115,9.5319,179.0,178.86,42.64142099]
[1736781557319,6.392,179.0,178.93,2.7956]
[1736781557807,2.7947,178.99,178.93,2.7956]
[1736781558013,112.68053717,179.07,178.96,2.795]
[1736781558217,6.392,179.06,178.92,42.64142099]
[1736781558409,2.7943,179.02,178.92,42.64142099]
[1736781558715,6.392,179.06,178.95,2.7952]
[1736781559020,6.392,179.06,178.98,2.7948]
[1736781559407,6.392,179.06,178.92,42.64142099]
[1736781560108,2.794,179.04,178.98,2.7947]
[1736781560314,6.392,179.06,178.95,42.64142099]
[1736781560510,154.55112607,179.21,178.96,8.7]
[1736781560711,42.64142099,179.16,178.96,118.56554755]
[1736781561012,42.64142099,179.13,178.96,42.64142099]
[1736781561217,2.7927,179.12,179.04,2.7939]
[1736781561415,18.3921,179.15,178.99,42.64142099]
[1736781562118,18.3921,179.15,179.02,42.64142099]
[1736781562418,2.7933,179.08,179.02,42.64142099]
[1736781563110,2.7935,179.07,178.99,42.64142099]
[1736781563513,2.7935,179.07,178.96,42.64142099]
[1736781563718,18.3921,179.15,178.92,42.64142099]
[1736781563719,8.68,179.06,178.92,42.64142099]